[Event "Kenya Olympiad Qualifiers (W)"]
[Site "followchess.com"]
[Date "2020.02.21"]
[Round "2"]
[White "Ndirangu, Joyce Nyaruai"]
[Black "Ngima, Cheryl"]
[Result "1-0"]
[WhiteElo "1658"]
[BlackElo "1362"]
[ECO "D37"]
[WhiteFed "KEN"]
[BlackFed "KEN"]
[FCGameId "2129255439"]
[WhiteFideId "10802886"]
[BlackFideId "10808973"]
[TimeControl "5400+30"]

1. d4 {[%clk 1:23:04]} d5 {[%clk 1:30:36]} 2. Nf3 {[%clk 1:22:41]} e6 
{[%clk 1:30:39]} 3. c4 {[%clk 1:22:20]} Be7 {[%clk 1:30:53]} 4. Nc3 
{[%clk 1:22:44]} Nf6 {[%clk 1:31:03]} 5. Bf4 {[%clk 1:23:06]} O-O 
{[%clk 1:31:07]} 6. e3 {[%clk 1:23:30]} c6 {[%clk 1:30:02]} 7. Be2 
{[%clk 1:19:45]} Nbd7 {[%clk 1:30:21]} 8. Rc1 {[%clk 1:19:56]} Ne4 
{[%clk 1:28:38]} 9. O-O {[%clk 1:19:37]} f5 {[%clk 1:27:13]} 10. cxd5 
{[%clk 1:17:34]} exd5 {[%clk 1:24:54]} 11. h3 {[%clk 1:15:07]} Ndf6 
{[%clk 1:23:57]} 12. Ne5 {[%clk 1:11:27]} Nxc3 {[%clk 1:17:11]} 13. bxc3 
{[%clk 1:09:08]} Be6 {[%clk 1:10:15]} 14. Rb1 {[%clk 1:08:37]} Qc8 
{[%clk 1:04:18]} 15. Qb3 {[%clk 1:07:32]} b6 {[%clk 1:02:54]} 16. c4 
{[%clk 1:07:42]} Kh8 {[%clk 0:56:30]} 17. Rfc1 {[%clk 1:04:57]} Qb7 
{[%clk 0:53:33]} 18. a4 {[%clk 1:04:14]} dxc4 {[%clk 0:50:09]} 19. Bxc4 
{[%clk 1:04:26]} Nd5 {[%clk 0:50:18]} 20. a5 {[%clk 1:02:18]} Nxf4 
{[%clk 0:46:54]} 21. exf4 {[%clk 1:02:34]} Bxc4 {[%clk 0:44:20]} 22. Qxc4 
{[%clk 1:03:01]} c5 {[%clk 0:42:18]} 23. dxc5 {[%clk 1:01:22]} Bxc5 
{[%clk 0:42:10]} 24. Qxc5 {[%clk 1:01:40]} 1-0

[Event "Kenya Olympiad Qualifiers (W)"]
[Site "followchess.com"]
[Date "2020.02.21"]
[Round "2"]
[White "Wanjiru, Lucy"]
[Black "Madelta Glenda"]
[Result "1-0"]
[WhiteElo "1614"]
[BlackElo "1423"]
[ECO "C01"]
[WhiteFed "KEN"]
[BlackFed "KEN"]
[FCGameId "1763754189"]
[WhiteFideId "10808590"]
[BlackFideId "10814949"]
[TimeControl "5400+30"]

1. e4 {[%clk 1:19:24]} e6 {[%clk 1:30:33]} 2. d4 {[%clk 1:19:46]} d5 
{[%clk 1:30:53]} 3. Bd3 {[%clk 1:20:04]} c5 {[%clk 1:30:49]} 4. exd5 
{[%clk 1:19:23]} Qxd5 {[%clk 1:30:39]} 5. Nf3 {[%clk 1:19:16]} Nf6 
{[%clk 1:30:07]} 6. Nc3 {[%clk 1:16:02]} Qd8 {[%clk 1:29:52]} 7. O-O 
{[%clk 1:15:43]} a6 {[%clk 1:29:39]} 8. dxc5 {[%clk 1:13:31]} Bxc5 
{[%clk 1:29:52]} 9. Qe2 {[%clk 1:11:52]} O-O {[%clk 1:22:39]} 10. Be3 
{[%clk 1:10:44]} Bd6 {[%clk 1:22:27]} 11. Rad1 {[%clk 1:10:33]} Qc7 
{[%clk 1:22:28]} 12. h3 {[%clk 1:09:41]} Nbd7 {[%clk 1:20:52]} 13. Kh1 
{[%clk 0:54:44]} b5 {[%clk 1:19:33]} 14. Bxb5 {[%clk 0:53:32]} axb5 
{[%clk 1:14:44]} 15. Nxb5 {[%clk 0:53:54]} Qa5 {[%clk 1:14:33]} 16. Nxd6 
{[%clk 0:52:46]} Ba6 {[%clk 1:13:48]} 17. c4 {[%clk 0:51:09]} Qxa2 
{[%clk 1:10:02]} 18. Qc2 {[%clk 0:47:52]} Rfb8 {[%clk 1:05:37]} 19. Rb1 
{[%clk 0:40:28]} h6 {[%clk 0:57:30]} 20. Rfc1 {[%clk 0:39:13]} Qb3 
{[%clk 0:54:00]} 21. Qxb3 {[%clk 0:38:42]} Rxb3 {[%clk 0:53:59]} 22. Nd4 
{[%clk 0:38:26]} Rb6 {[%clk 0:50:17]} 23. N4b5 {[%clk 0:38:43]} Rc6 
{[%clk 0:50:03]} 24. b3 {[%clk 0:29:47]} Bxb5 {[%clk 0:48:10]} 25. Nxb5 
{[%clk 0:29:55]} Rb8 {[%clk 0:46:35]} 26. Na7 {[%clk 0:23:55]} Rc7 
{[%clk 0:46:08]} 27. Nb5 {[%clk 0:21:50]} Rc6 {[%clk 0:42:39]} 28. Ra1 
{[%clk 0:19:06]} g5 {[%clk 0:39:28]} 29. Ra5 {[%clk 0:18:50]} e5 
{[%clk 0:31:47]} 30. b4 {[%clk 0:17:18]} Nb6 {[%clk 0:28:49]} 31. Na3 
{[%clk 0:14:08]} Rbc8 {[%clk 0:25:28]} 32. Ra6 {[%clk 0:09:39]} Nbd7 
{[%clk 0:20:19]} 33. Rxc6 {[%clk 0:09:46]} Rxc6 {[%clk 0:20:15]} 34. b5 
{[%clk 0:10:03]} Rc8 {[%clk 0:20:17]} 35. f3 {[%clk 0:09:07]} Ra8 
{[%clk 0:16:41]} 36. Nc2 {[%clk 0:09:00]} Ne8 {[%clk 0:13:11]} 37. c5 
{[%clk 0:07:25]} Nc7 {[%clk 0:04:41]} 38. c6 {[%clk 0:06:24]} Nb8 
{[%clk 0:03:44]} 39. b6 {[%clk 0:06:35]} Nd5 {[%clk 0:03:23]} 40. c7 
{[%clk 0:06:33]} 1-0

[Event "Kenya Olympiad Qualifiers (W)"]
[Site "followchess.com"]
[Date "2020.02.21"]
[Round "2"]
[White "Gosrani, Naiya"]
[Black "Mwendwa, Triza"]
[Result "1-0"]
[WhiteElo "1359"]
[BlackElo "1408"]
[ECO "C10"]
[WhiteFed "KEN"]
[BlackFed "KEN"]
[FCGameId "908162159"]
[WhiteFideId "10805397"]
[BlackFideId "10814965"]
[TimeControl "5400+30"]

1. e4 {[%clk 1:30:59]} e6 {[%clk 1:24:01]} 2. d4 {[%clk 1:31:24]} d5 
{[%clk 1:24:11]} 3. Nc3 {[%clk 1:31:37]} c5 {[%clk 1:21:34]} 4. exd5 
{[%clk 1:31:13]} exd5 {[%clk 1:21:50]} 5. dxc5 {[%clk 1:31:13]} d4 
{[%clk 1:16:18]} 6. Bb5+ {[%clk 1:26:56]} Nc6 {[%clk 1:12:49]} 7. Bxc6+ 
{[%clk 1:25:55]} bxc6 {[%clk 1:13:05]} 8. Nce2 {[%clk 1:24:28]} Bxc5 
{[%clk 1:10:16]} 9. Nf3 {[%clk 1:10:43]} Bb4+ {[%clk 1:08:24]} 10. Bd2 
{[%clk 1:07:18]} Bxd2+ {[%clk 1:06:33]} 11. Qxd2 {[%clk 1:07:44]} c5 
{[%clk 1:05:11]} 12. b4 {[%clk 1:05:21]} cxb4 {[%clk 0:42:25]} 13. Qxb4 
{[%clk 1:05:41]} Ne7 {[%clk 0:40:10]} 14. Qxd4 {[%clk 1:03:48]} O-O 
{[%clk 0:38:27]} 15. O-O {[%clk 1:03:05]} Be6 {[%clk 0:36:58]} 16. Qxd8 
{[%clk 1:00:05]} Rfxd8 {[%clk 0:37:20]} 17. Ned4 {[%clk 0:58:49]} Bc4 
{[%clk 0:34:00]} 18. Rfe1 {[%clk 0:58:11]} Ng6 {[%clk 0:31:04]} 19. a3 
{[%clk 0:54:13]} Rd6 {[%clk 0:28:12]} 20. Nf5 {[%clk 0:47:41]} Rd7 
{[%clk 0:23:53]} 21. h3 {[%clk 0:46:06]} Rad8 {[%clk 0:22:57]} 22. Rab1 
{[%clk 0:41:17]} Be6 {[%clk 0:20:28]} 23. Ne3 {[%clk 0:35:52]} h6 
{[%clk 0:20:26]} 24. Rb4 {[%clk 0:27:46]} Rc7 {[%clk 0:17:18]} 25. Reb1 
{[%clk 0:23:04]} Rdd7 {[%clk 0:11:08]} 26. Nd4 {[%clk 0:16:48]} Bd5 
{[%clk 0:07:36]} 27. Nxd5 {[%clk 0:15:08]} Rxd5 {[%clk 0:07:56]} 28. Rd1 
{[%clk 0:06:44]} Rxc2 {[%clk 0:06:42]} 29. Ra4 {[%clk 0:02:17]} Rc7 
{[%clk 0:06:13]} 30. Rb1 {[%clk 0:01:20]} Rcc5 {[%clk 0:04:57]} 31. Rbb4 
{[%clk 0:00:53]} Ra5 {[%clk 0:04:25]} 32. Nc6 {[%clk 0:00:32]} Rxa4 
{[%clk 0:02:24]} 33. Rxa4 {[%clk 0:00:59]} Rd1+ {[%clk 0:02:33]} 34. Kh2 
{[%clk 0:01:26]} Rd2 {[%clk 0:02:29]} 35. Kg3 {[%clk 0:01:29]} Kf8 
{[%clk 0:01:32]} 36. Rxa7 {[%clk 0:01:43]} Ke8 {[%clk 0:01:36]} 37. a4 
{[%clk 0:01:39]} Re2 {[%clk 0:01:13]} 38. a5 {[%clk 0:01:36]} Ne5 
{[%clk 0:01:16]} 39. Re7+ {[%clk 0:01:20]} Kf8 {[%clk 0:01:30]} 40. Rxe5 
{[%clk 0:01:41]} Ra2 {[%clk 0:01:35]} 41. Re7 {[%clk 0:01:23]} Rxa5 
{[%clk 0:01:34]} 42. Nxa5 {[%clk 0:01:35]} Kxe7 {[%clk 0:02:01]} 43. Nc6+ 
{[%clk 0:01:53]} Ke6 {[%clk 0:02:13]} 44. Kf4 {[%clk 0:01:28]} f6 
{[%clk 0:02:23]} 45. Nd4+ {[%clk 0:01:03]} Kf7 {[%clk 0:02:29]} 46. h4 
{[%clk 0:00:34]} g6 {[%clk 0:02:42]} 47. g4 {[%clk 0:00:34]} Ke7 
{[%clk 0:02:33]} 48. f3 {[%clk 0:00:33]} Kf7 {[%clk 0:02:40]} 49. Ke4 
{[%clk 0:00:43]} Ke7 {[%clk 0:02:48]} 50. f4 {[%clk 0:00:54]} Kf7 
{[%clk 0:03:00]} 51. f5 {[%clk 0:00:39]} g5 {[%clk 0:02:41]} 52. hxg5 
{[%clk 0:00:56]} hxg5 {[%clk 0:03:01]} 53. Ne6 {[%clk 0:00:46]} Ke7 
{[%clk 0:03:19]} 54. Nxg5 {[%clk 0:00:50]} fxg5 {[%clk 0:03:39]} 55. Ke5 
{[%clk 0:01:18]} Kf7 {[%clk 0:03:38]} 56. f6 Kg6 57. Ke6 Kh7 {[%clk 0:00:51]} 
58. Ke7 {[%clk 0:02:31]} Kg6 {[%clk 0:01:13]} 59. f7 {[%clk 0:02:47]} Kh7 
{[%clk 0:01:19]} 60. f8=Q {[%clk 0:03:00]} Kg6 {[%clk 0:01:43]} 61. Qf5+ 
{[%clk 0:02:47]} Kh6 {[%clk 0:01:52]} 62. Qf8+ {[%clk 0:02:32]} Kg6 
{[%clk 0:01:19]} 63. Qf7+ {[%clk 0:02:43]} Kh6 {[%clk 0:01:44]} 64. Qh5+ 
{[%clk 0:02:49]} Kg7 {[%clk 0:01:40]} 65. Qxg5+ {[%clk 0:03:15]} Kh7 66. Kf7 Kh8 
{[%clk 0:01:30]} 67. Qg7# 1-0